[Event "Live Chess"]
[Site "Chess.com"]
[Date "2024.06.02"]
[Round "-"]
[White "MagnersCarlsberg2870"]
[Black "SavagePawn7"]
[Result "1-0"]
[WhiteElo "1829"]
[BlackElo "660"]
[TimeControl "300"]
[EndTime "0:18:27 PDT"]
[Termination "MagnersCarlsberg2870 won on time"]

1. d4 {[%clk 0:04:58]} 1... d5 {[%clk 0:04:50.8]} 2. e3 {[%clk 0:04:56.3]} 2...
Nc6 {[%clk 0:04:46.6]} 3. Bd3 {[%clk 0:04:54.9]} 3... Nf6 {[%clk 0:04:37.2]} 4.
Nd2 {[%clk 0:04:53.7]} 4... e5 {[%clk 0:04:26.7]} 5. dxe5 {[%clk 0:04:48.5]}
5... Nxe5 {[%clk 0:04:24.4]} 6. Bb5+ {[%clk 0:04:47.2]} 6... c6 {[%clk
0:04:22.4]} 7. Be2 {[%clk 0:04:45.2]} 7... Bc5 {[%clk 0:04:13.3]} 8. Ngf3 {[%clk
0:04:43.7]} 8... Nxf3+ {[%clk 0:04:08.3]} 9. Nxf3 {[%clk 0:04:42.6]} 9... O-O
{[%clk 0:04:06.5]} 10. Bd2 {[%clk 0:04:41.3]} 10... Bd6 {[%clk 0:03:55.1]} 11.
Bc3 {[%clk 0:04:39.3]} 11... Re8 {[%clk 0:03:42.2]} 12. Qd4 {[%clk 0:04:36.4]}
12... c5 {[%clk 0:03:36.2]} 13. Qh4 {[%clk 0:04:34.8]} 13... Be7 {[%clk
0:03:21.5]} 14. Ng5 {[%clk 0:04:31.1]} 14... h6 {[%clk 0:03:09.8]} 15. Nf3
{[%clk 0:04:22.2]} 15... Ne4 {[%clk 0:02:44.7]} 16. Qh5 {[%clk 0:04:19.6]} 16...
Nxc3 {[%clk 0:02:37.9]} 17. bxc3 {[%clk 0:04:18.6]} 17... Bd6 {[%clk 0:02:19.5]}
18. O-O {[%clk 0:04:16.7]} 18... Qf6 {[%clk 0:01:47.5]} 19. c4 {[%clk
0:04:08.7]} 19... dxc4 {[%clk 0:01:38.3]} 20. Bxc4 {[%clk 0:04:06.8]} 20... Bd7
{[%clk 0:01:13.3]} 21. Rad1 {[%clk 0:04:05.1]} 21... Re7 {[%clk 0:00:45.1]} 22.
Qd5 {[%clk 0:03:46.4]} 22... Re6 {[%clk 0:00:17.6]} 23. Qxb7 {[%clk 0:03:41.8]}
23... Qd8 {[%clk 0:00:06.4]} 24. Bxe6 {[%clk 0:03:38.8]} 24... Bxe6 {[%clk
0:00:04]} 25. Rxd6 {[%clk 0:03:37.1]} 1-0

[Event "Live Chess"]
[Site "Chess.com"]
[Date "2024.06.02"]
[Round "-"]
[White "Duke_of_Bebington"]
[Black "MaximKovalenko83"]
[Result "0-1"]
[WhiteElo "1696"]
[BlackElo "2180"]
[TimeControl "300"]
[EndTime "0:19:00 PDT"]
[Termination "MaximKovalenko83 won by resignation"]

1. e4 {[%clk 0:04:58.3]} 1... e5 {[%clk 0:04:58.7]} 2. Nf3 {[%clk 0:04:57.1]}
2... Nc6 {[%clk 0:04:55.4]} 3. Bc4 {[%clk 0:04:55.9]} 3... Bc5 {[%clk
0:04:53.4]} 4. b4 {[%clk 0:04:55.1]} 4... Bxb4 {[%clk 0:04:51.8]} 5. c3 {[%clk
0:04:54.5]} 5... Ba5 {[%clk 0:04:50.4]} 6. d4 {[%clk 0:04:43.3]} 6... exd4
{[%clk 0:04:48.7]} 7. O-O {[%clk 0:04:40.5]} 7... Nf6 {[%clk 0:04:45.3]} 8. e5
{[%clk 0:04:28.3]} 8... Ne4 {[%clk 0:04:43.6]} 9. cxd4 {[%clk 0:04:25]} 9... d5
{[%clk 0:04:41.9]} 10. exd6 {[%clk 0:04:22.1]} 10... Nxd6 {[%clk 0:04:38]} 11.
Bb3 {[%clk 0:04:11.7]} 11... O-O {[%clk 0:04:34.2]} 12. Bb2 {[%clk 0:03:52]}
12... Bg4 {[%clk 0:04:31.3]} 13. Nbd2 {[%clk 0:03:48.6]} 13... Bxd2 {[%clk
0:04:27.7]} 14. Qxd2 {[%clk 0:03:46.3]} 14... Bxf3 {[%clk 0:04:27.1]} 15. gxf3
{[%clk 0:03:41.3]} 15... Qh4 {[%clk 0:04:25]} 16. Bd5 {[%clk 0:03:28.4]} 16...
Ne7 {[%clk 0:04:14.7]} 17. Be4 {[%clk 0:03:24.8]} 17... Nxe4 {[%clk 0:04:09.8]}
18. fxe4 {[%clk 0:03:24.7]} 18... Qxe4 {[%clk 0:04:08]} 19. Qg5 {[%clk
0:03:11.5]} 19... Qg6 {[%clk 0:04:04.2]} 20. Qg3 {[%clk 0:03:06.5]} 20... Nd5
{[%clk 0:03:56]} 21. Rfe1 {[%clk 0:02:58.3]} 21... c6 {[%clk 0:03:53.8]} 22. Kh1
{[%clk 0:02:56.6]} 22... Qxg3 {[%clk 0:03:51.2]} 23. hxg3 {[%clk 0:02:54.6]}
23... Rfe8 {[%clk 0:03:50.4]} 0-1

[Event "Live Chess"]
[Site "Chess.com"]
[Date "2024.06.02"]
[Round "-"]
[White "Kyrylo7770"]
[Black "ZombieChainsaw"]
[Result "0-1"]
[WhiteElo "1621"]
[BlackElo "1794"]
[TimeControl "300"]
[EndTime "0:19:19 PDT"]
[Termination "ZombieChainsaw won by resignation"]

1. d4 {[%clk 0:04:59.1]} 1... g6 {[%clk 0:04:57.2]} 2. Nf3 {[%clk 0:04:56.1]}
2... Bg7 {[%clk 0:04:55.5]} 3. Bg5 {[%clk 0:04:55.8]} 3... h6 {[%clk 0:04:52.6]}
4. Bh4 {[%clk 0:04:55]} 4... Nf6 {[%clk 0:04:47.7]} 5. e3 {[%clk 0:04:54.1]}
5... O-O {[%clk 0:04:44.9]} 6. c4 {[%clk 0:04:53.4]} 6... d6 {[%clk 0:04:43.9]}
7. Nc3 {[%clk 0:04:52.7]} 7... c6 {[%clk 0:04:42.5]} 8. Bd3 {[%clk 0:04:51.9]}
8... Qc7 {[%clk 0:04:37.7]} 9. Bg3 {[%clk 0:04:50.2]} 9... Nbd7 {[%clk
0:04:35.2]} 10. h4 {[%clk 0:04:47.8]} 10... h5 {[%clk 0:04:29.9]} 11. Ng5 {[%clk
0:04:42.6]} 11... e5 {[%clk 0:04:24.7]} 12. d5 {[%clk 0:04:37.7]} 12... Re8
{[%clk 0:04:02.6]} 13. Nce4 {[%clk 0:04:26.2]} 13... Nxe4 {[%clk 0:03:55.5]} 14.
Bxe4 {[%clk 0:04:25.3]} 14... Nf8 {[%clk 0:03:43.6]} 15. Bf3 {[%clk 0:04:22.7]}
15... f5 {[%clk 0:03:24.7]} 16. O-O {[%clk 0:04:15]} 16... e4 {[%clk 0:03:18.4]}
17. Be2 {[%clk 0:04:13.9]} 17... Be5 {[%clk 0:03:16]} 18. dxc6 {[%clk
0:04:03.8]} 18... bxc6 {[%clk 0:03:08.1]} 19. b3 {[%clk 0:04:03]} 19... Bxg3
{[%clk 0:02:56.1]} 20. fxg3 {[%clk 0:04:02.2]} 20... Ne6 {[%clk 0:02:50.4]} 21.
Nxe6 {[%clk 0:03:39.4]} 21... Bxe6 {[%clk 0:02:50.3]} 22. Qd4 {[%clk 0:03:35.7]}
22... Qb6 {[%clk 0:02:38.3]} 23. Qxd6 {[%clk 0:03:34.6]} 23... Qxe3+ {[%clk
0:02:36.7]} 24. Kh1 {[%clk 0:03:33.4]} 24... Qxe2 {[%clk 0:02:36.2]} 25. Rae1
{[%clk 0:03:32.4]} 25... Qg4 {[%clk 0:02:25.2]} 26. Rd1 {[%clk 0:03:28]} 26...
Rac8 {[%clk 0:02:16.1]} 27. c5 {[%clk 0:03:13.7]} 27... e3 {[%clk 0:02:01.2]}
28. Rd4 {[%clk 0:03:09.9]} 28... Qe2 {[%clk 0:01:45.1]} 29. Rg1 {[%clk
0:03:01.6]} 29... Qxa2 {[%clk 0:01:41.1]} 30. Qe5 {[%clk 0:02:51.6]} 30... Qxb3
{[%clk 0:01:33.5]} 31. Qf6 {[%clk 0:02:50.4]} 31... Bf7 {[%clk 0:01:29.8]} 32.
Rd7 {[%clk 0:02:47.5]} 32... Qe6 {[%clk 0:01:22.5]} 33. Qxe6 {[%clk 0:02:36.7]}
33... Rxe6 {[%clk 0:01:22.4]} 34. Rxa7 {[%clk 0:02:34.8]} 34... Re5 {[%clk
0:01:18.5]} 35. Re1 {[%clk 0:02:33.8]} 35... e2 {[%clk 0:01:12]} 36. Ra2 {[%clk
0:02:33]} 36... Bxa2 {[%clk 0:01:10.7]} 0-1

[Event "Live Chess"]
[Site "Chess.com"]
[Date "2024.06.02"]
[Round "-"]
[White "Ferrarifan27"]
[Black "Victor_Bondar"]
[Result "1-0"]
[WhiteElo "2119"]
[BlackElo "1460"]
[TimeControl "300"]
[EndTime "0:19:21 PDT"]
[Termination "Ferrarifan27 won by resignation"]

1. e4 {[%clk 0:04:56]} 1... d5 {[%clk 0:04:59]} 2. exd5 {[%clk 0:04:54.3]} 2...
Qxd5 {[%clk 0:04:58]} 3. Nc3 {[%clk 0:04:52]} 3... Qa5 {[%clk 0:04:57]} 4. d4
{[%clk 0:04:48.8]} 4... Nf6 {[%clk 0:04:56.4]} 5. Bd2 {[%clk 0:04:43.8]} 5... c6
{[%clk 0:04:55]} 6. Nf3 {[%clk 0:04:41.8]} 6... Bg4 {[%clk 0:04:52.8]} 7. Be2
{[%clk 0:04:39]} 7... e6 {[%clk 0:04:49.6]} 8. h3 {[%clk 0:04:35.9]} 8... Bf5
{[%clk 0:04:48.4]} 9. O-O {[%clk 0:04:32]} 9... Qc7 {[%clk 0:04:47]} 10. Re1
{[%clk 0:04:26]} 10... Nbd7 {[%clk 0:04:45.9]} 11. Nh4 {[%clk 0:04:14.8]} 11...
Bg6 {[%clk 0:04:44.7]} 12. Nxg6 {[%clk 0:04:11.4]} 12... hxg6 {[%clk 0:04:43.6]}
13. Bg5 {[%clk 0:04:03.5]} 13... Bd6 {[%clk 0:04:35.4]} 14. Qd2 {[%clk 0:04:02]}
14... O-O-O {[%clk 0:04:21.3]} 15. a4 {[%clk 0:03:54.4]} 15... a6 {[%clk
0:04:08.2]} 16. a5 {[%clk 0:03:53.3]} 16... Be7 {[%clk 0:03:59.4]} 17. Bf4
{[%clk 0:03:51.4]} 17... Bd6 {[%clk 0:03:57.8]} 18. Bg5 {[%clk 0:03:44.7]} 18...
Be7 {[%clk 0:03:56.7]} 19. Bf3 {[%clk 0:03:39.6]} 19... Ne5 {[%clk 0:03:55.3]}
20. dxe5 {[%clk 0:03:22]} 20... Rxd2 {[%clk 0:03:49.8]} 21. exf6 {[%clk
0:03:21.1]} 21... Bxf6 {[%clk 0:03:42.8]} 22. Bxd2 {[%clk 0:03:19]} 22... Bxc3
{[%clk 0:03:39]} 23. Bxc3 {[%clk 0:03:17.8]} 23... f6 {[%clk 0:03:37.4]} 24.
Rxe6 {[%clk 0:03:12.5]} 24... Rd8 {[%clk 0:03:22.1]} 25. Rae1 {[%clk 0:03:09.8]}
25... Kb8 {[%clk 0:03:17.3]} 26. Re7 {[%clk 0:03:06.2]} 26... Rd7 {[%clk
0:03:15.9]} 27. Rxd7 {[%clk 0:03:02.1]} 27... Qxd7 {[%clk 0:03:14.6]} 28. Bb4
{[%clk 0:02:44.1]} 28... Qd4 {[%clk 0:03:05.1]} 29. c3 {[%clk 0:02:21.5]} 29...
Qd2 {[%clk 0:03:02.2]} 30. Re8+ {[%clk 0:02:17.9]} 30... Kc7 {[%clk 0:02:55]}
31. Re7+ {[%clk 0:02:16.8]} 31... Kd8 {[%clk 0:02:48.9]} 32. g3 {[%clk 0:01:45]}
32... Qc1+ {[%clk 0:02:40.8]} 33. Kg2 {[%clk 0:01:43.2]} 33... Qxb2 {[%clk
0:02:24.8]} 34. Rxb7 {[%clk 0:01:41]} 34... c5 {[%clk 0:02:15.8]} 35. Bxc5
{[%clk 0:01:33.4]} 35... Qxc3 {[%clk 0:02:10.1]} 36. Bb6+ {[%clk 0:01:31.9]}
36... Kc8 {[%clk 0:02:07.3]} 37. Rc7+ {[%clk 0:01:30.6]} 37... Kb8 {[%clk
0:02:05.8]} 38. Rxc3 {[%clk 0:01:26.1]} 1-0

[Event "Live Chess"]
[Site "Chess.com"]
[Date "2024.06.02"]
[Round "-"]
[White "GerardATHart"]
[Black "NAZRIZ1977"]
[Result "0-1"]
[WhiteElo "1377"]
[BlackElo "2118"]
[TimeControl "300"]
[EndTime "0:19:45 PDT"]
[Termination "NAZRIZ1977 won by resignation"]

1. e4 {[%clk 0:04:54.6]} 1... c5 {[%clk 0:04:58.3]} 2. Nc3 {[%clk 0:04:52.9]}
2... Nc6 {[%clk 0:04:57.3]} 3. Bb5 {[%clk 0:04:51.2]} 3... Nd4 {[%clk
0:04:56.2]} 4. Nf3 {[%clk 0:04:48.8]} 4... g6 {[%clk 0:04:55.5]} 5. Nxd4 {[%clk
0:04:47]} 5... cxd4 {[%clk 0:04:54.4]} 6. Ne2 {[%clk 0:04:45.2]} 6... Bg7 {[%clk
0:04:53.3]} 7. d3 {[%clk 0:04:42.4]} 7... e6 {[%clk 0:04:52.3]} 8. O-O {[%clk
0:04:40.2]} 8... Ne7 {[%clk 0:04:51.2]} 9. f4 {[%clk 0:04:37.8]} 9... O-O {[%clk
0:04:48.7]} 10. g4 {[%clk 0:04:30.8]} 10... d5 {[%clk 0:04:46.7]} 11. f5 {[%clk
0:04:25]} 11... exf5 {[%clk 0:04:35.5]} 12. gxf5 {[%clk 0:04:23.6]} 12... Nc6
{[%clk 0:04:28.4]} 13. Ng3 {[%clk 0:03:56.4]} 13... dxe4 {[%clk 0:04:23.4]} 14.
dxe4 {[%clk 0:03:55]} 14... a6 {[%clk 0:04:04.1]} 15. Bd3 {[%clk 0:03:52.9]}
15... b5 {[%clk 0:03:51]} 16. Qf3 {[%clk 0:03:50.9]} 16... Ne5 {[%clk
0:03:49.1]} 17. Qg2 {[%clk 0:03:45.3]} 17... Bb7 {[%clk 0:03:46.2]} 18. Bf4
{[%clk 0:03:41.7]} 18... Qh4 {[%clk 0:03:39.7]} 19. Qf2 {[%clk 0:03:19.6]} 19...
Ng4 {[%clk 0:03:36.5]} 20. Qg2 {[%clk 0:03:12.8]} 20... Kh8 {[%clk 0:03:21.9]}
21. h3 {[%clk 0:03:07.8]} 21... Ne3 {[%clk 0:03:20.1]} 22. Qh2 {[%clk
0:03:00.8]} 22... Nxf1 {[%clk 0:03:05.1]} 23. Rxf1 {[%clk 0:02:56.5]} 23... Rfe8
{[%clk 0:03:00]} 24. Rf3 {[%clk 0:02:16.5]} 24... g5 {[%clk 0:02:57.3]} 25. Bd6
{[%clk 0:02:04.7]} 25... Rad8 {[%clk 0:02:48.9]} 26. Bc5 {[%clk 0:01:57.4]}
26... Be5 {[%clk 0:02:47.3]} 27. Kg2 {[%clk 0:01:54.7]} 27... Bxg3 {[%clk
0:02:38]} 28. Qxg3 {[%clk 0:01:49.3]} 28... Qxg3+ {[%clk 0:02:36.1]} 29. Kxg3
{[%clk 0:01:48]} 29... Bxe4 {[%clk 0:02:32.1]} 30. Bxe4 {[%clk 0:01:45.5]} 30...
Rxe4 {[%clk 0:02:31.1]} 31. Rd3 {[%clk 0:01:43.6]} 31... h5 {[%clk 0:02:25.6]}
32. c3 {[%clk 0:01:29.6]} 32... Re3+ {[%clk 0:01:58.6]} 33. Rxe3 {[%clk
0:01:26.5]} 33... dxe3 {[%clk 0:01:58.5]} 34. Bxe3 {[%clk 0:01:24.9]} 34... Rd3
{[%clk 0:01:49.2]} 35. Kf2 {[%clk 0:01:22]} 35... f6 {[%clk 0:01:34.5]} 36. Ke2
{[%clk 0:01:18.7]} 36... Rd5 {[%clk 0:01:33.4]} 37. h4 {[%clk 0:01:13.8]} 37...
Rxf5 {[%clk 0:01:30.6]} 38. hxg5 {[%clk 0:01:12.6]} 38... fxg5 {[%clk 0:01:29]}
39. Bf2 {[%clk 0:01:11.3]} 39... Kg7 {[%clk 0:01:21.4]} 40. Kf1 {[%clk
0:01:10.5]} 40... Kf6 {[%clk 0:01:19.2]} 41. Kg2 {[%clk 0:01:09.8]} 41... Ke5
{[%clk 0:01:16.4]} 42. Bd4+ {[%clk 0:01:08.2]} 42... Ke4 {[%clk 0:01:15.5]} 43.
Kg3 {[%clk 0:01:06.9]} 43... Kd3 {[%clk 0:01:14.4]} 44. b4 {[%clk 0:01:04]}
44... Kc2 {[%clk 0:01:12.3]} 0-1

[Event "Live Chess"]
[Site "Chess.com"]
[Date "2024.06.02"]
[Round "-"]
[White "WeakOldFinished"]
[Black "peteopeteo"]
[Result "1-0"]
[WhiteElo "2185"]
[BlackElo "1552"]
[TimeControl "300"]
[EndTime "0:19:48 PDT"]
[Termination "WeakOldFinished won by checkmate"]

1. e4 {[%clk 0:04:56.1]} 1... c6 {[%clk 0:04:56.3]} 2. d3 {[%clk 0:04:51.3]}
2... d5 {[%clk 0:04:53.1]} 3. Nd2 {[%clk 0:04:50.6]} 3... Nf6 {[%clk 0:04:49.5]}
4. Ngf3 {[%clk 0:04:49.1]} 4... dxe4 {[%clk 0:04:48.4]} 5. dxe4 {[%clk
0:04:47.9]} 5... Bg4 {[%clk 0:04:42]} 6. h3 {[%clk 0:04:46.8]} 6... Bxf3 {[%clk
0:04:40.8]} 7. Qxf3 {[%clk 0:04:44.5]} 7... Nbd7 {[%clk 0:04:37.5]} 8. a4 {[%clk
0:04:32.1]} 8... e5 {[%clk 0:04:36.8]} 9. Bc4 {[%clk 0:04:28.7]} 9... Bc5 {[%clk
0:04:34.2]} 10. O-O {[%clk 0:04:27.2]} 10... O-O {[%clk 0:04:33.2]} 11. c3
{[%clk 0:04:26.5]} 11... Qb6 {[%clk 0:04:32.2]} 12. b4 {[%clk 0:04:23.9]} 12...
Be7 {[%clk 0:04:28.5]} 13. a5 {[%clk 0:04:23.1]} 13... Qc7 {[%clk 0:04:26.9]}
14. Re1 {[%clk 0:04:14.3]} 14... b5 {[%clk 0:04:25.9]} 15. Bf1 {[%clk
0:04:06.2]} 15... a6 {[%clk 0:04:19.4]} 16. Bb2 {[%clk 0:04:04]} 16... c5 {[%clk
0:04:17.5]} 17. Rac1 {[%clk 0:04:00.6]} 17... c4 {[%clk 0:04:15.2]} 18. Be2
{[%clk 0:03:58.8]} 18... Rad8 {[%clk 0:03:55.2]} 19. Nf1 {[%clk 0:03:57.7]}
19... Qb7 {[%clk 0:03:48.6]} 20. Ng3 {[%clk 0:03:56]} 20... Ne8 {[%clk
0:03:40.7]} 21. Rcd1 {[%clk 0:03:51.8]} 21... Ndf6 {[%clk 0:03:38.5]} 22. Bf1
{[%clk 0:03:48.8]} 22... Nd6 {[%clk 0:03:37.7]} 23. Bc1 {[%clk 0:03:45.6]} 23...
Rd7 {[%clk 0:03:22.9]} 24. h4 {[%clk 0:03:42.7]} 24... Rfd8 {[%clk 0:03:22]} 25.
h5 {[%clk 0:03:41]} 25... Nde8 {[%clk 0:03:02.8]} 26. Rxd7 {[%clk 0:03:37.4]}
26... Rxd7 {[%clk 0:03:02.7]} 27. Nf5 {[%clk 0:03:34.3]} 27... Nd6 {[%clk
0:02:48.5]} 28. Ng3 {[%clk 0:03:22.7]} 28... Qc8 {[%clk 0:02:07.1]} 29. Be3
{[%clk 0:03:11]} 29... Nde8 {[%clk 0:01:56.7]} 30. Nf5 {[%clk 0:03:08.9]} 30...
Bf8 {[%clk 0:01:43.6]} 31. g3 {[%clk 0:02:59.7]} 31... Nd6 {[%clk 0:01:32.1]}
32. Nh6+ {[%clk 0:02:49.1]} 32... Kh8 {[%clk 0:01:18.8]} 33. Bh3 {[%clk
0:02:47.7]} 33... Qd8 {[%clk 0:00:59.1]} 34. Bxd7 {[%clk 0:02:44.5]} 34... Qxd7
{[%clk 0:00:59]} 35. Bc5 {[%clk 0:02:36.2]} 35... Qe6 {[%clk 0:00:47.1]} 36. Nf5
{[%clk 0:02:23.8]} 36... Nxf5 {[%clk 0:00:41.3]} 37. exf5 {[%clk 0:02:23.1]}
37... Qc8 {[%clk 0:00:39.2]} 38. h6 {[%clk 0:02:22.4]} 38... Bxc5 {[%clk
0:00:36.7]} 39. hxg7+ {[%clk 0:02:21.3]} 39... Kg8 {[%clk 0:00:32.5]} 40. bxc5
{[%clk 0:02:19.7]} 40... Qxc5 {[%clk 0:00:30.4]} 41. Qe3 {[%clk 0:02:18.8]}
41... Qc8 {[%clk 0:00:24.7]} 42. Qxe5 {[%clk 0:02:17.5]} 42... Kxg7 {[%clk
0:00:22.9]} 43. Re4 {[%clk 0:02:15.9]} 43... Qd8 {[%clk 0:00:19.5]} 44. Rd4
{[%clk 0:02:13.8]} 44... Qe8 {[%clk 0:00:17.9]} 45. Rg4+ {[%clk 0:02:11.4]}
45... Kh8 {[%clk 0:00:14.2]} 46. Qxf6# {[%clk 0:02:10.6]} 1-0

[Event "Live Chess"]
[Site "Chess.com"]
[Date "2024.06.02"]
[Round "-"]
[White "DenisOnopriichuk2003"]
[Black "Duke_of_Bebington"]
[Result "0-1"]
[WhiteElo "1755"]
[BlackElo "1706"]
[TimeControl "300"]
[EndTime "0:20:07 PDT"]
[Termination "Duke_of_Bebington won by resignation"]

1. e4 {[%clk 0:04:59.1]} 1... e5 {[%clk 0:04:56.6]} 2. Nf3 {[%clk 0:04:57.4]}
2... Nf6 {[%clk 0:04:55.8]} 3. Nxe5 {[%clk 0:04:56.1]} 3... d6 {[%clk
0:04:54.4]} 4. Nf3 {[%clk 0:04:55.3]} 4... Nxe4 {[%clk 0:04:53.9]} 5. d4 {[%clk
0:04:54.9]} 5... d5 {[%clk 0:04:52.8]} 6. Bd3 {[%clk 0:04:54.4]} 6... Bd6 {[%clk
0:04:52.1]} 7. c3 {[%clk 0:04:53.8]} 7... O-O {[%clk 0:04:51]} 8. O-O {[%clk
0:04:53.2]} 8... Bg4 {[%clk 0:04:46.9]} 9. h3 {[%clk 0:04:52.6]} 9... Bh5 {[%clk
0:04:45.9]} 10. Nbd2 {[%clk 0:04:49.1]} 10... Bg6 {[%clk 0:04:44.9]} 11. Nxe4
{[%clk 0:04:48.2]} 11... dxe4 {[%clk 0:04:43.8]} 12. Bxe4 {[%clk 0:04:38.5]}
12... Bxe4 {[%clk 0:04:42.2]} 0-1

[Event "Live Chess"]
[Site "Chess.com"]
[Date "2024.06.02"]
[Round "-"]
[White "Tatarinov_Maxim"]
[Black "juniortay"]
[Result "1-0"]
[WhiteElo "2274"]
[BlackElo "2380"]
[TimeControl "300"]
[EndTime "0:20:14 PDT"]
[Termination "Tatarinov_Maxim won by resignation"]

1. Nf3 {[%clk 0:04:57.2]} 1... Nf6 {[%clk 0:04:58.2]} 2. c4 {[%clk 0:04:55.5]}
2... g6 {[%clk 0:04:58.1]} 3. g3 {[%clk 0:04:55]} 3... Bg7 {[%clk 0:04:58]} 4.
Bg2 {[%clk 0:04:54.7]} 4... d6 {[%clk 0:04:57.7]} 5. O-O {[%clk 0:04:54.4]} 5...
O-O {[%clk 0:04:56.4]} 6. d4 {[%clk 0:04:54]} 6... c6 {[%clk 0:04:55.4]} 7. Nc3
{[%clk 0:04:52.5]} 7... Qa5 {[%clk 0:04:53.6]} 8. d5 {[%clk 0:04:50.9]} 8...
cxd5 {[%clk 0:04:50.4]} 9. cxd5 {[%clk 0:04:50.8]} 9... b5 {[%clk 0:04:49]} 10.
Nd4 {[%clk 0:04:38.5]} 10... b4 {[%clk 0:04:46.7]} 11. Nb1 {[%clk 0:04:37.7]}
11... Bb7 {[%clk 0:04:43.2]} 12. e4 {[%clk 0:04:35.4]} 12... Nbd7 {[%clk
0:04:39.2]} 13. Be3 {[%clk 0:04:23.2]} 13... Rfc8 {[%clk 0:04:35.4]} 14. Nd2
{[%clk 0:04:22.3]} 14... Qd8 {[%clk 0:04:14.1]} 15. a3 {[%clk 0:04:01.7]} 15...
a5 {[%clk 0:04:07]} 16. axb4 {[%clk 0:04:00.7]} 16... axb4 {[%clk 0:04:05.7]}
17. Qb3 {[%clk 0:03:59.9]} 17... Rab8 {[%clk 0:03:46.3]} 18. Rfc1 {[%clk
0:03:47.2]} 18... Nc5 {[%clk 0:03:44.4]} 19. Qd1 {[%clk 0:03:44.4]} 19... Nd3
{[%clk 0:03:30.2]} 20. Rxc8 {[%clk 0:03:41.5]} 20... Rxc8 {[%clk 0:03:28.1]} 21.
Qb3 {[%clk 0:03:40.3]} 21... Nc5 {[%clk 0:03:18.3]} 22. Qxb4 {[%clk 0:03:22.1]}
22... Rb8 {[%clk 0:03:16.9]} 23. Qa5 {[%clk 0:03:09.7]} 23... Qe8 {[%clk
0:02:58]} 24. b4 {[%clk 0:03:02.5]} 24... Ra8 {[%clk 0:02:51.7]} 25. bxc5 {[%clk
0:02:54.4]} 25... Rxa5 {[%clk 0:02:48.9]} 26. Rxa5 {[%clk 0:02:54.3]} 26... dxc5
{[%clk 0:02:47.8]} 27. Rxc5 {[%clk 0:02:52.5]} 27... Ng4 {[%clk 0:02:46.2]} 28.
Nc6 {[%clk 0:02:41.6]} 28... Nxe3 {[%clk 0:02:41]} 29. fxe3 {[%clk 0:02:41.5]}
29... Bf6 {[%clk 0:02:35.2]} 30. e5 {[%clk 0:02:24]} 30... Bg5 {[%clk
0:02:27.6]} 31. Kf2 {[%clk 0:02:22.7]} 31... Qa8 {[%clk 0:02:23.4]} 32. Ra5
{[%clk 0:02:11.5]} 32... Qe8 {[%clk 0:02:11.6]} 33. Ne4 {[%clk 0:02:09]} 33...
Bh6 {[%clk 0:01:56.2]} 34. Ra7 {[%clk 0:01:53.9]} 34... Bxc6 {[%clk 0:01:48.2]}
35. dxc6 {[%clk 0:01:53.8]} 35... Qb8 {[%clk 0:01:46.5]} 36. Rb7 {[%clk
0:01:42.2]} 36... Qxe5 {[%clk 0:01:43.4]} 37. c7 {[%clk 0:01:38.6]} 37... Qf5+
{[%clk 0:01:16.8]} 38. Bf3 {[%clk 0:01:34.8]} 38... Kg7 {[%clk 0:01:15.5]} 39.
Rb8 {[%clk 0:01:29.4]} 39... Qa5 {[%clk 0:00:58.2]} 40. c8=Q {[%clk 0:01:28.1]}
40... Qa2+ {[%clk 0:00:55.9]} 41. Be2 {[%clk 0:01:25.5]} 1-0

[Event "Live Chess"]
[Site "Chess.com"]
[Date "2024.06.02"]
[Round "-"]
[White "Greenbecker"]
[Black "MagnersCarlsberg2870"]
[Result "1/2-1/2"]
[WhiteElo "1727"]
[BlackElo "1827"]
[TimeControl "300"]
[EndTime "0:20:24 PDT"]
[Termination "Game drawn by agreement"]

1. e4 {[%clk 0:04:55.5]} 1... d5 {[%clk 0:04:58.3]} 2. exd5 {[%clk 0:04:53.6]}
2... Nf6 {[%clk 0:04:57.4]} 3. Nf3 {[%clk 0:04:50.9]} 3... Qxd5 {[%clk
0:04:55.7]} 4. Nc3 {[%clk 0:04:47.7]} 4... Qh5 {[%clk 0:04:54.3]} 5. Be2 {[%clk
0:04:45.3]} 5... Bg4 {[%clk 0:04:52.6]} 6. d3 {[%clk 0:04:43.9]} 6... e6 {[%clk
0:04:51.4]} 7. Be3 {[%clk 0:04:40.1]} 7... Bd6 {[%clk 0:04:50.2]} 8. Ne4 {[%clk
0:04:37.9]} 8... Nxe4 {[%clk 0:04:48.3]} 9. dxe4 {[%clk 0:04:36.2]} 9... Nc6
{[%clk 0:04:46.2]} 10. Nd4 {[%clk 0:04:31.7]} 10... Bxe2 {[%clk 0:04:38.7]} 11.
Qxe2 {[%clk 0:04:28.3]} 11... Qxe2+ {[%clk 0:04:35.8]} 12. Kxe2 {[%clk
0:04:26.5]} 12... Nxd4+ {[%clk 0:04:34]} 13. Bxd4 {[%clk 0:04:25.3]} 13... e5
{[%clk 0:04:33]} 14. Bc3 {[%clk 0:04:21.1]} 14... f6 {[%clk 0:04:31.1]} 15. Rad1
{[%clk 0:04:16.9]} 15... O-O-O {[%clk 0:04:28.9]} 16. Rd3 {[%clk 0:04:14.9]}
16... Bc5 {[%clk 0:04:26.1]} 17. Rhd1 {[%clk 0:04:11.4]} 17... Rxd3 {[%clk
0:04:23.6]} 18. Rxd3 {[%clk 0:04:08]} 18... Rd8 {[%clk 0:04:22.4]} 19. Rxd8+
{[%clk 0:04:04.6]} 19... Kxd8 {[%clk 0:04:21.6]} 20. f3 {[%clk 0:04:02.7]} 20...
Kd7 {[%clk 0:04:20]} 21. Kd3 {[%clk 0:04:01.7]} 21... Kc6 {[%clk 0:04:18.8]}
1/2-1/2

[Event "Live Chess"]
[Site "Chess.com"]
[Date "2024.06.02"]
[Round "-"]
[White "MaximKovalenko83"]
[Black "Kyrylo7770"]
[Result "1-0"]
[WhiteElo "2181"]
[BlackElo "1620"]
[TimeControl "300"]
[EndTime "0:20:27 PDT"]
[Termination "MaximKovalenko83 won by resignation"]

1. d4 {[%clk 0:04:57.6]} 1... d5 {[%clk 0:04:58.7]} 2. Nf3 {[%clk 0:04:55.4]}
2... Nf6 {[%clk 0:04:49.1]} 3. c4 {[%clk 0:04:53.8]} 3... c6 {[%clk 0:04:48]} 4.
Nc3 {[%clk 0:04:52.1]} 4... Bf5 {[%clk 0:04:46.8]} 5. Bg5 {[%clk 0:04:50]} 5...
e6 {[%clk 0:04:45.9]} 6. e3 {[%clk 0:04:48.5]} 6... Be7 {[%clk 0:04:44.7]} 7.
Be2 {[%clk 0:04:46.7]} 7... Be4 {[%clk 0:04:42.7]} 8. Bxf6 {[%clk 0:04:44.1]}
8... Bxf6 {[%clk 0:04:41]} 9. Nxe4 {[%clk 0:04:41.9]} 9... dxe4 {[%clk
0:04:40.6]} 10. Nd2 {[%clk 0:04:41.2]} 10... Qa5 {[%clk 0:04:37.6]} 11. O-O
{[%clk 0:04:38.2]} 11... O-O {[%clk 0:04:36.4]} 12. Nxe4 {[%clk 0:04:36.8]}
12... Nd7 {[%clk 0:04:34.9]} 13. a3 {[%clk 0:04:35]} 13... Qh5 {[%clk
0:04:33.2]} 14. Bxh5 {[%clk 0:04:32.8]} 1-0